Cogmind - Beta 11 @@@ ROGUE MODE // 2022.03.21 @ 14:58:48 Player: Shrewd Result: Self-destructed Performance ------------- Evolutions (2) 1000 Regions Visited (5) 1000 Robots Destroyed (31) 155 Value Destroyed (719) 719 Prototype IDs (26) 520 Alien Tech Used (0) 0 Bonus (444) 444 TOTAL SCORE: 3838 Bonus ------- Follower Combat Kills 144 Aligned with FarCom 300 Cogmind --------- Core Integrity 229/550 Matter 300/300 Energy 150/150 System Corruption 10% Temperature Cool (0) Movement Walking (110) Location -8/Materials Parts ------- > --- POWER (1) -------- Light Angular Momentum Engine > --- PROPULSION (4) --- Aluminum Leg Aluminum Leg VSS Leg > --- UTILITY (4) ------ Medium Storage Unit > --- WEAPON (2) ------- Particle Gun Pulse Rifle > --- INVENTORY (10) --- Light Nuclear Core Aluminum Leg Aluminum Leg Aluminum Leg Carbon-fiber Leg Wheel Heavy Assault Rifle Peak State ------------ > --- POWER ------------ Ion Engine > --- PROPULSION ------- Carbon-fiber Leg Titanium Leg VSS Leg > --- UTILITY ---------- Medium Storage Unit Experimental Sensor Array > --- WEAPON ----------- High-powered Shotgun Field Lobotomy Kit > --- INVENTORY -------- Light Angular Momentum Engine Aluminum Leg Aluminum Leg Aluminum Leg Carbon-fiber Leg Wheel Pulse Rifle Enhanced Flamer [Rating: 34] Favorites ----------- Power Reinforced Ion Engine Engine Reinforced Ion Engine Power Core Light Nuclear Core Propulsion Aluminum Leg Leg Aluminum Leg Utility Medium Storage Unit Device Sensor Array Storage Medium Storage Unit Processor Signal Interpreter Weapon Assault Rifle Energy Gun Beamcaster Energy Cannon Ion Cannon Ballistic Gun Assault Rifle Launcher Grenade Launcher Special Weapon Field Lobotomy Kit Impact Weapon Hammer Build | -11 -10 -10 -10 -9 -8 ------- Run | Scr Mat Min Exi Min Mat Slots Evolved 4 | . . . . . 4 Power . | . . . . . . Propulsion 2 | . . . . . 2 Utility 2 | . . . . . 2 Weapon . | . . . . . . Parts Attached 47 | 1 9 3 . 12 22 Power 5 | . . 1 . 1 3 Engine 4 | . . 1 . 1 2 Core 1 | . . . . . 1 Reactor . | . . . . . . Propulsion 12 | . 1 1 . 2 8 Treads . | . . . . . . Leg 12 | . 1 1 . 2 8 Wheel . | . . . . . . Hover . | . . . . . . Flight . | . . . . . . Utility 12 | 1 6 . . 1 4 Device 7 | 1 3 . . . 3 Storage 2 | . 1 . . 1 . Processor 3 | . 2 . . . 1 Hackware . | . . . . . . Protection . | . . . . . . Artifact . | . . . . . . Weapon 18 | . 2 1 . 8 7 Energy Gun 3 | . . . . 1 2 Energy Cannon 1 | . . . . . 1 Ballistic Gun 4 | . 1 1 . 1 1 Ballistic Cannon . | . . . . . . Launcher 3 | . 1 . . 2 . Special Weapon 6 | . . . . 3 3 Impact Weapon 1 | . . . . 1 . Slashing Weapon . | . . . . . . Piercing Weapon . | . . . . . . Special Melee Weapon . | . . . . . . Unidentified Prototypes 1 | . . . . . 1 Parts Lost 16 | . . . . 4 12 Power 3 | . . . . 1 2 Propulsion 2 | . . . . . 2 Utility 4 | . . . . . 4 Weapon 7 | . . . . 3 4 Highest Loss Streak 7 | . . . . 2 7 To Critical Strikes . | . . . . . . Average Slot Usage (%) 97 | . 100 100 100 99 88 Engine 12 | . 14 14 14 13 5 Leg 28 | . 28 28 28 28 33 Device 4 | . 9 . . . 12 Storage 13 | . 14 14 14 14 9 Processor 10 | . 4 14 14 14 8 Energy Gun 2 | . . . . 6 5 Energy Cannon 1 | . . . . . 6 Ballistic Gun 18 | . 26 23 28 10 3 Launcher 1 | . 1 4 . . . Impact Weapon 2 | . . . . 8 . Naked Turns . | . . . . . . Heaviest Build 33 | 15 20 24 23 30 33 Greatest Support 54 | 20 20 25 25 25 54 Greatest Overweight (x) 2 | . . 1 . 1 2 Average Overweight (x) . | . . . . . . Largest Inventory Capacity 10 | 8 10 10 10 10 10 Average Capacity 9 | 8 9 10 10 10 10 Most Carried 10 | 6 10 10 10 10 10 Average Carried 9 | 6 8 9 9 9 8 Final Capacity 10 | 8 10 10 10 10 10 Final Carried 10 | 6 10 10 10 10 7 Class Distribution -------------------- 57% | Scavenger-Mutant 31% | Mutant 10% | Scavenger-Skirmisher Dominant Class ---------------- Mutant | -10/Materials Scavenger-Mutant | -10/Mines Scavenger-Mutant | -10/Exiles Scavenger-Mutant | -9/Mines Scavenger-Skirmisher | -8/Materials Resources | -11 -10 -10 -10 -9 -8 ----------- Run | Scr Mat Min Exi Min Mat Matter Collected 1046 | 280 230 107 . 187 242 Remotely . | . . . . . . Salvage Created 796 | 52 174 52 . 159 359 Parts 63 | 8 19 7 . 9 20 Haulers Intercepted . | . . . . . . Recyclers Shooed 1 | . . 1 . . . Parts Field Recycled . | . . . . . . Retrieved Matter . | . . . . . . Parts Self-Destructed . | . . . . . . Prevented . | . . . . . . Kills | -11 -10 -10 -10 -9 -8 ------- Run | Scr Mat Min Exi Min Mat Combat Hostiles Destroyed 30 | . 6 6 . 7 11 Guns 17 | . 4 3 . 4 6 Cannons 3 | . . . . . 3 AOE 8 | . 2 3 . 3 . Classes Destroyed 7 | 1 3 . . 2 1 Tunneler 3 | 3 . . . . . Watcher 1 | . 1 . . . . Swarmer 14 | . 3 6 . 1 4 Grunt 9 | . 3 . . 2 4 Brawler 1 | . . . . 1 . Sentry 3 | . . . . . 3 Assembled 3 | . . . . 3 . Best Kill Streak 4 | 1 3 4 . 3 3 Combat Bots Only 4 | . 3 4 . 3 3 Max Kills in Single Turn 2 | 1 2 2 . 2 1 Gunslinging . | . . . . . . Exploded 2 | . 2 2 . 2 . Melee . | . . . . . . Uniques/NPCs Destroyed . | . . . . . . Combat | -11 -10 -10 -10 -9 -8 -------- Run | Scr Mat Min Exi Min Mat Damage Taken 2568 | . 277 120 . 626 1545 Core 466 | . 31 9 . 105 321 Absorbed by Shields . | . . . . . . Core Remaining (%) 71 | 100 . . . 42 . Volleys Fired 116 | 13 31 8 . 25 39 Largest 2 | 2 2 2 . 2 2 Hottest 143 | 40 50 50 . 80 143 Shots Fired 202 | 26 59 12 . 31 74 Gun 157 | 26 58 9 . 23 41 Cannon 27 | . . . . . 27 Launcher 7 | . 1 3 . 3 . Special 11 | . . . . 5 6 Kinetic 129 | 26 58 9 . 19 17 Thermal 61 | . . . . 6 55 Explosive 7 | . 1 3 . 3 . Electromagnetic . | . . . . . . Robot Hit Streak 10 | 9 5 2 . 4 10 Robot Miss Streak 5 | 2 5 3 . 5 2 Penetration Max . | . . . . . . Secondary Targets 2 | . . . . 2 . Max Gunslinging Chain 1 | . . . . 1 . Shots Hit Robots 112 | 22 27 5 . 15 43 Core Hits 49 | 3 14 6 . 10 16 Critical Kills . | . . . . . . Critical Parts Destroyed 1 | . . . . 1 . Critical Strikes 1 | . . . . 1 . Smash 1 | . . . . 1 . Melee Attacks 5 | . . . . 5 . Impact 5 | . . . . 5 . Slashing . | . . . . . . Piercing . | . . . . . . Sneak Attacks . | . . . . . . Combat Hostiles . | . . . . . . Follow-up Attacks . | . . . . . . Damage Inflicted 2088 | 285 442 211 . 353 797 Guns 1193 | 285 322 31 . 128 427 Cannons 278 | . . . . . 278 Explosions 450 | . 103 165 . 182 . Melee 30 | . . . . 30 . Ramming 93 | . 17 15 . 13 48 Kinetic 828 | 285 322 31 . 107 83 Thermal 687 | . . . . 21 666 Explosive 450 | . 103 165 . 182 . Electromagnetic . | . . . . . . Impact 30 | . . . . 30 . Slashing . | . . . . . . Piercing . | . . . . . . Highest Corruption 10 | . . . . . 10 Average Corruption 10 | . . . . . 10 Corruption Purged . | . . . . . . Corruption Blocked . | . . . . . . Effects 12 | . . . . . 12 Matter Fused 1 | . . . . . 1 Heat Flow Errors 2 | . . . . . 2 Energy Discharges 3 | . . . . . 3 Parts Rejected 1 | . . . . . 1 Data Loss (minor) 1 | . . . . . 1 Alerts 1 | . . . . . 1 Misdirections 2 | . . . . . 2 Weapon Failures 1 | . . . . . 1 Overload Shots . | . . . . . . Overflow Damage 56 | . . 17 . 31 8 Projectiles 8 | . . . . . 8 Explosions 18 | . . 17 . 1 . Melee 30 | . . . . 30 . Knockbacks 1 | . . 1 . . . Impact 1 | . . 1 . . . Kinetic . | . . . . . . Secondary . | . . . . . . Self-Inflicted Damage 84 | . . 31 . 53 . Shots 3 | . . 1 . 2 . Rammed . | . . . . . . Targets Rammed 18 | . 3 5 . 2 8 Kicked 18 | . 3 5 . 2 8 Crushed . | . . . . . . Highest Temperature 354 | 6 2 . . 126 354 Average Temperature 89 | 6 2 . . 37 112 Received Heat Transfer 909 | . 147 . . 132 630 Siege Activations . | . . . . . . Robots Corrupted . | . . . . . . Combat Hostiles . | . . . . . . Parts Fried . | . . . . . . Impact Corruptions 1 | . . . . 1 . Robots Melted 2 | . . . . . 2 Combat Hostiles 2 | . . . . . 2 Parts Melted 4 | . . . . . 4 Heat Transferred 1467 | . . . . 37 1430 Parts Sabotaged . | . . . . . . Parts Stolen . | . . . . . . Parts Stripped . | . . . . . . Power Chain Reactions . | . . . . . . Missiles Intercepted . | . . . . . . Alert | -11 -10 -10 -10 -9 -8 ------- Run | Scr Mat Min Exi Min Mat Peak Influence 278 | 15 139 278 . 111 198 Initial 54 | . 9 54 . . . Average 56 | 7 39 127 . 33 63 Maximum Alert Level 1 | . . 1 . . . Low Security (%) 95 | 100 100 75 . 100 100 Level 1 4 | . . 24 . . . Level 2 . | . . . . . . Level 3 . | . . . . . . Level 4 . | . . . . . . Level 5 . | . . . . . . High Security . | . . . . . . Max Security . | . . . . . . Squads Dispatched 4 | . 1 . . . 3 Investigation . | . . . . . . Extermination . | . . . . . . Reinforcement 4 | . 1 . . . 3 Assault . | . . . . . . Garrison . | . . . . . . Intercept . | . . . . . . Searches Triggered . | . . . . . . Construction Impeded 1 | . . . . . 1 Haulers Reinforced . | . . . . . . Active Scanning Responses . | . . . . . . Cargo Convoy Interrupts . | . . . . . . Stealth | -11 -10 -10 -10 -9 -8 --------- Run | Scr Mat Min Exi Min Mat Distress Signals 7 | . 1 . . 4 2 Communications Jammed . | . . . . . . Distress Signals . | . . . . . . Times Spotted 65 | . 15 7 . 22 21 Peak Tracking Total 8 | . 4 3 . 5 8 Tactical Retreats 3 | . . 1 . 2 . Traps | -11 -10 -10 -10 -9 -8 ------- Run | Scr Mat Min Exi Min Mat Traps Triggered . | . . . . . . Indirectly . | . . . . . . Trap Hack Attempts . | . . . . . . Triggered . | . . . . . . Disarmed . | . . . . . . Reprogrammed . | . . . . . . Reused . | . . . . . . Traps Extracted . | . . . . . . Installed . | . . . . . . Triggered 1 | . . . . 1 . Machines | -11 -10 -10 -10 -9 -8 ---------- Run | Scr Mat Min Exi Min Mat Machines Disabled . | . . . . . . Max in Single Turn . | . . . . . . Machines Sabotaged . | . . . . . . Garrisons Compromised . | . . . . . . Overloaded Fab Kills . | . . . . . . Hacking | -11 -10 -10 -10 -9 -8 --------- Run | Scr Mat Min Exi Min Mat Machines Accessed 11 | . 8 . 2 . 1 Terminals 7 | . 6 . . . 1 Fabricators . | . . . . . . Repair Stations . | . . . . . . Recycling Units 2 | . 2 . . . . Scanalyzers . | . . . . . . Garrison Access . | . . . . . . Total Hacks 41 | . 15 . 24 . 2 Successful 31 | . 6 . 24 . 1 Failed 10 | . 9 . . . 1 Catastrophic 1 | . 1 . . . . Database Lockouts . | . . . . . . Manual 3 | . 1 . 2 . . Terminals 15 | . 13 . . . 2 Fabricators . | . . . . . . Repair Stations . | . . . . . . Recycling Units 2 | . 2 . . . . Scanalyzers . | . . . . . . Garrison Access . | . . . . . . Terminal Hacks 29 | . 4 . 24 . 1 Record 24 | . 1 . 23 . . Prototype ID Bank 1 | . . . . . 1 Emergency Access Points 1 | . 1 . . . . Dispatch Records 1 | . 1 . . . . Maintenance Status 1 | . 1 . . . . EX-Prototype ID Bank 1 | . . . 1 . . Fabricator Hacks . | . . . . . . Repair Station Hacks . | . . . . . . Recycling Unit Hacks 2 | . 2 . . . . Report Inventory 2 | . 2 . . . . Scanalyzer . | . . . . . . Garrison Access Hacks . | . . . . . . Unauthorized Hacks . | . . . . . . Terminals . | . . . . . . Fabricators . | . . . . . . Repair Stations . | . . . . . . Recycling Units . | . . . . . . Scanalyzers . | . . . . . . Garrison Access . | . . . . . . Data Cores Recovered . | . . . . . . Used . | . . . . . . Hacking Detections 9 | . 8 . . . 1 Full Trace Events . | . . . . . . Feedback Events . | . . . . . . Feedback Blocked . | . . . . . . Robot Schematics Acquired . | . . . . . . Robots Built . | . . . . . . Authchips . | . . . . . . Time . | . . . . . . Total Robot Build Rating . | . . . . . . Part Schematics Acquired . | . . . . . . Parts Built . | . . . . . . Authchips . | . . . . . . Time . | . . . . . . Total Part Build Rating . | . . . . . . Parts Repaired . | . . . . . . Time . | . . . . . . Parts Recycled . | . . . . . . Recycled Matter . | . . . . . . Retrieved Matter . | . . . . . . Retrieved Components . | . . . . . . Parts Scanalyzed . | . . . . . . Part Schematics Acquired . | . . . . . . Parts Damaged . | . . . . . . Bothacking | -11 -10 -10 -10 -9 -8 ------------ Run | Scr Mat Min Exi Min Mat Used RIF Installer . | . . . . . . Robots Hacked . | . . . . . . Non-combat . | . . . . . . Combat . | . . . . . . Robot Hacks Applied . | . . . . . . Relay Couplers Released . | . . . . . . Fabnet Peak Effective % . | . . . . . . Robots Rewired . | . . . . . . Allies Hacked . | . . . . . . Hacks Repelled . | . . . . . . Allies | -11 -10 -10 -10 -9 -8 -------- Run | Scr Mat Min Exi Min Mat Total Allies 10 | . . . . 8 2 Largest Group 4 | . . . . 4 1 Highest-Rated Group 49 | . . . . 49 15 Highest-Rated Ally 31 | . . . . 31 15 Total Orders . | . . . . . . Ally Attacks 65 | . . . . 50 15 Total Damage 814 | . . . . 540 274 Kills 12 | . . . . 10 2 Allies Corrupted . | . . . . . . Allies Melted . | . . . . . . Field Lobotomies 5 | . . . . 3 2 Intel | -11 -10 -10 -10 -9 -8 ------- Run | Scr Mat Min Exi Min Mat Robot Analysis Total . | . . . . . . Derelict Logs Recovered 3 | . . 2 . 1 . Drone Launches . | . . . . . . Drone Recoveries . | . . . . . . Exploration | -11 -10 -10 -10 -9 -8 ------------- Run | Scr Mat Min Exi Min Mat Turns Passed 4752 | 109 1172 714 697 1260 800 Spaces Moved 3239 | 42 846 543 580 757 471 Core . | . . . . . . Treads . | . . . . . . Legs 3239 | 42 846 543 580 757 471 Wheels . | . . . . . . Hover . | . . . . . . Flight . | . . . . . . Fastest Speed 110 | 120 120 120 120 120 110 Average Speed 127 | 120 120 120 120 149 120 Slowest Speed 270 | 120 120 190 120 190 270 Overloaded Moves . | . . . . . . Propulsion Burnouts . | . . . . . . Robots Hopped . | . . . . . . Cave-ins Triggered 1 | . . . . . 1 Exploration Rate (%) 63 | 4 81 75 92 94 33 Regions Visited 5 Branch Regions 3 Pre-discovered Areas 3 | . . . 1 2 . Known Exits Taken 4 | . 1 1 1 1 . Unknown Exits Taken 1 | 1 . . . . . Scrap Searched 4 | . . 2 . 2 . Spaces Dug 8 | . . . . . 8 Terrain Destroyed 71 | . 8 23 . 31 9 Melee . | . . . . . . Projectile 9 | . . . . . 9 AOE 62 | . 8 23 . 31 . Terrain Rammed . | . . . . . . Walls Destroyed . | . . . . . . Machines Disabled . | . . . . . . Actions | -11 -10 -10 -10 -9 -8 --------- Run | Scr Mat Min Exi Min Mat Total 3647 | 74 945 593 581 839 615 Wait 171 | 19 38 24 . 23 67 Move 3233 | 41 845 542 579 756 470 Hop . | . . . . . . Pick Up 29 | . 10 4 1 8 6 Fast Attach 8 | 1 1 . . 1 5 Attach 14 | . . . . 3 11 Detach . | . . . . . . Swap 25 | . 8 3 . 8 6 Drop 26 | . 9 6 1 8 2 Fire 116 | 13 31 8 . 25 39 Melee 5 | . . . . 5 . Ram . | . . . . . . Kick 18 | . 3 5 . 2 8 Crush . | . . . . . . Escape Stasis 1 | . . . . . 1 Rewire 1 | . . 1 . . . Trap . | . . . . . . Miscellaneous . | . . . . . . Route ------- -11/Scrapyard -10/Materials (discovered 3 exits: *Mat x2 / *Min) -10/Mines -10/Exiles -9/Mines -8/Materials History --------- Turn | Location | Event 1 | -11/Scrapyard | Discovered new exit (range 3) 110 | -11/Scrapyard | Entered Materials 313 | -10/Materials | Build established: Mutant 373 | -10/Materials | Discovered new exit (range 16) 897 | -10/Materials | Discovered new exit (range 9) 965 | -10/Materials | Identified exit to Materials 1192 | -10/Materials | Discovered new exit (range 16) 1224 | -10/Materials | Identified exit to Mines 1282 | -10/Materials | Entered Mines 1317 | -10/Mines | Met a Derelict bent on vengeance 1477 | -10/Mines | Learned 2 Materials zone layouts 1575 | -10/Mines | A weapon hastily lodged in a ceiling crevice suddenly fell to the ground 1741 | -10/Mines | Build established: Scavenger-Mutant 1829 | -10/Mines | Found a damaged Exp. Sensor Array with a note attached 1836 | -10/Mines | Found Prototype Device 1987 | -10/Mines | Deemed a non-threat by the Exiles lab entrance 1988 | -10/Mines | Discovered new exit (range 5) 1992 | -10/Mines | Identified exit to Exiles 1996 | -10/Mines | Entered Exiles 2026 | -10/Exiles | Met 8R-AWN 2046 | -10/Exiles | Met EX-HEX 2085 | -10/Exiles | Met EX-BIN 2101 | -10/Exiles | Aligned with FarCom system 2102 | -10/Exiles | Given EX-Vault access code 2131 | -10/Exiles | Opened EX-Vault 2154 | -10/Exiles | Found Field Lobotomy Kit 2184 | -10/Exiles | Warned to stay clear of 0b10 Research branches 2221 | -10/Exiles | Met EX-DEC 2228 | -10/Exiles | Learned location of Zion (-6) 2304 | -10/Exiles | Discovered new exit (range 11) 2314 | -10/Exiles | Identified exit to Mines 2397 | -10/Exiles | Visited The Gauntlet 2693 | -10/Exiles | Left Exiles lab with Field Lobotomy Kit 2693 | -10/Exiles | Entered Mines 2922 | -9/Mines | Discovered new exit (range 8) 2929 | -9/Mines | Learned location of Storage (-9) 2931 | -9/Mines | Identified exit to Materials 3184 | -9/Mines | Assembled infested the area 3189 | -9/Mines | Assisted by a Guerilla fighting off Assembled 3207 | -9/Mines | Assimilated as-86487 with FLK Orb 3210 | -9/Mines | Assimilated as-37055 with FLK Orb 3236 | -9/Mines | Core integrity fell below 50% 3245 | -9/Mines | Assimilated as-78299 with FLK Orb 3323 | -9/Mines | Assisted by bots powering up and referring to "LRC-V3" 3953 | -9/Mines | Entered Materials 3953 | -8/Materials | Accompanied by 1 ally 3953 | -8/Materials | Evolved 4 slots: Propulsion x2, Utility x2 4348 | -8/Materials | Build established: Scavenger-Skirmisher 4513 | -8/Materials | Crushed by falling debris 4514 | -8/Materials | System corruption reached 10% 4536 | -8/Materials | Identified Exp. Sensor Array 4544 | -8/Materials | Lost 3 parts (3u) 4616 | -8/Materials | Assimilated Y-45 Defender with FLK Orb 4620 | -8/Materials | Assimilated G-47 Trooper with FLK Orb 4640 | -8/Materials | Core integrity fell below 50% 4677 | -8/Materials | Lost 7 parts (2p2n3w) 4753 | -8/Materials | Self-destructed Last Messages --------------- 04672_ R-06 Scavenger collects Lgt. Treads. 04673_ Acquired 3 matter. 04674_ K-01 Serf collects debris. 04676_ R-06 Scavenger collects Hvy. Assault Rifle. 04677_ K-01 Serf collects debris. 04679_ R-06 Scavenger collects Lgt. Treads. 04679_ Acquired Aluminum Leg. 04680_ Exp. Sensor Array destroyed. 04682_ System corrupted: Component data lost. 04683_ System corrupted: Pulse Rifle failed to cycle. 04685_ K-01 Serf collects debris. 04686_ Acquired Particle Gun. 04688_ K-01 Serf collects debris. 04697_ Heat Sink melted. 04697_ Hvy. Assault Rifle melted. 04697_ Y-45 Defender destroyed. 04701_ Acquired Hvy. Assault Rifle. 04705_ Acquired 15 matter. 04711_ System corrupted: IFF burst signal emitted. 04730_ System corrupted: Heat flow error (+105). Map ----- +----------------------------------------------------+ | | | | | | | | | | | | | | | | | | | | | | | | | | | | | | | | | | | | | ????????????????????????????? | | ????????????????????????????? | | ????????????????????????????? | | ##########??????????????????? | | # #??????????????????? | | # [ #??????????????????? | | # #??????????????????? | | # @ #??????????????????? | | #""" ! #??????????????????? | | #""" #??????????????????? | | #""" #??????????????????? | | #""" #??????????????????? | | # #??????????????????? | | ####+#####??????????????????? | | # ###+########????????? | | # ???????? | | # ???????? | | # ???????? | | # ???????? | | # ???????? | | # ############????????? | | ### ###???????????????????? | | ??# #?????????????????????? | | ??# ##########????????????? | | ??# # #????????????? | | ??# # """ #????# ???? | | ??# # """ #????# ???? | | ??# # """ #????# ???? | | ??# + #???## ???? | | ??# # """ #???# ???? | | ??# # """ #???#######+## | | ??# # """ #???????# | +----------------------------------------------------+ Best States ------------- Heat Dissipation 45 Energy Generation 18 Energy Capacity 265 Matter Stores 300 Matter Capacity 300 Sight Range 16 Robot Scan Range 20 Terrain Scan Density 10 Evasion (%) 55 Targeting Accuracy 5 Item Schematics ----------------- None Robot Schematics ------------------ None Fabricated ------------ Nothing Alien Tech Used ----------------- None Achievements -------------- I Spy I Survived The Infestation Unlikely Earthworm Challenges ------------ None Game ------ Seed FieldClaymoresDrive Manual? 0 Play Time 00:39:49 Cumulative 10.1 hours Start 2022.03.21 @ 14:02:17 End 2022.03.21 @ 14:58:48 Sessions 1 Manual Loads 0 Difficulty Rogue Special Mode None Game No. 18 Rogue 18 Adventurer 0 Explorer 0 Win Type - Total 0 Types 0/0/0/0/0/0/0/0/0 Lore% 16 Gallery% 18 Achievement% 18 Wizard Run 0 Options --------- ASCII 0 Keyboard 1 Movement Numpad Keybinds 0 Fullscreen 1 Font 18/SmallcapsGlow Map View 76x50 Tactical HUD 1 Map Filters NONE Filters NONE Steam 1 RUN: b95e92de-d2ff-43c7-8787-b594fecb531f